Workbook

Sheet Algus
B1: TEAVE SELLE MALLI KOHTA
B2: Selle sündmuse eelarve töövihiku abil saate jälgida sündmusega seotud kulusid ja sellelt teenitud tulu.
B3: Täitke väli Sündmuse nimi ja sisestage üksikasjad töölehe Kulud ja töölehe Tulud tabelitesse.
B4: Kogukulu ja Sissetulekud kokku arvutatakse automaatselt.
B5: Kasumi ja kahjumi kokkuvõte ja diagrammi uuendatakse automaatselt kokkuvõte töölehel.
B6: Märkus.
B7: Iga töölehe veerus A on toodud lisajuhised. See tekst on tahtlikult peidetud. Teksti eemaldamiseks valige veerg A ja seejärel käsk KUSTUTA. Teksti kuvamiseks valige veerg A ja muutke seejärel fondi värvi.
B8: Tabelite kohta lisateabe saamiseks vajutage tabelis tõstuklahvi (SHIFT) ja seejärel klahvi F10, valige TABEL suvand ja seejärel käsk ASETEKST.

Sheet Väljaminekud
A1: Sisestage selle töölehe vastavatesse tabelitesse eri kategooriate lõikes Prognoos ja Tegelik kulud. Kogukulud arvutatakse automaatselt. Töölehe kasutamise kohta käivad kasulikud juhised leiate selle veeru lahtritest. Liikuge alustamiseks noolega alla.
A2: Selle ja muude töölehtede pealkirja kohandamiseks sisestage paremasse lahtrisse Ürituse nimi. | B2: Ürituse eelarve Ürituse nimi
A3: Lahtris G3 on kulud silt. | G3: Kulud
A4: Lahtris G4 on prognoos silt, tegelik silt on lahtris H4. | G4: Prognoos | H4: Tegelik
A5: Kogukulu silt on parempoolses lahtris. Prognoos Kogukulu arvutatakse automaatselt lahtris G5. Tegelikke Kogukulu ja andmeriba, millel on kujutatud tegelik Kogukulu uuendatakse automaatselt lahtris H5. Järgmine juhis on toodud lahtris A7. | B5: Kogukulu | G5: =SUM(C12,C20,C26,C33,G12,G20,G25) -> 1,145.00 € | H5: =SUM(D12,D20,D26,D33,H12,H20,H25) -> 395.00 €
A7: Sisestage Koha Kulud parempoolsest lahtrist algavasse tabelisse ja Suupistete Kulud lahtrist F7 algavasse tabelisse. Järgmised juhised on toodud lahtris A14. | B7: Koha | C7: Prognoos | D7: Tegelik | F7: Suupistete Kulud | G7: Prognoos | H7: Tegelik
B8: Ruumi rent | C8: 500.00 € | D8: 250.00 € | F8: Söök
B9: Palgatud personal | C9: 400.00 € | D9: 50.00 € | F9: Joogid
B10: Varustus | F10: Laudlinad
B11: Lauad ja toolid | F11: Personal ja lisatasud
B12: Kokku | C12: =SUBTOTAL(109,KohaKulud[Prognoos]) -> 900.00 € | D12: =SUBTOTAL(109,KohaKulud[Tegelik]) -> 300.00 € | F12: Kokku | G12: =SUBTOTAL(109,SuupisteteKulud[Prognoos]) -> 0.00 € | H12: =SUBTOTAL(109,SuupisteteKulud[Tegelik]) -> 0.00 €
A14: Sisestage tabelisse kaunistustekulud, alustades parempoolsest lahtrist ja programmikulud, alustades lahtrist F14. Järgmised juhised on toodud lahtris A22. | B14: Kaunistused | C14: Prognoos | D14: Tegelik | F14: Programm | G14: Prognoos | H14: Tegelik
B15: Lilled | C15: 200.00 € | D15: 50.00 € | F15: Esinejad
B16: Küünlad | F16: Õhtujuht
B17: Valgustus | F17: Reisimine
B18: Õhupallid | F18: Hotell
B19: Ühekordseks kasutamiseks mõeldud tarvikud | F19: Muu
B20: Kokku | C20: =SUBTOTAL(109,KaunistusteKulud[Prognoos]) -> 200.00 € | D20: =SUBTOTAL(109,KaunistusteKulud[Tegelik]) -> 50.00 € | F20: Kokku | G20: =SUBTOTAL(109,programmikulud[Prognoos]) -> 0.00 € | H20: =SUBTOTAL(109,programmikulud[Tegelik]) -> 0.00 €
A22: Sisestage Reklaamikulud parempoolsest lahtrist algavasse tabelisse ja Auhinnakulud lahtrist F22 algavasse tabelisse. Järgmine juhis on lahtris A28. | B22: Ettevalmistused | C22: Prognoos | D22: Tegelik | F22: Hinnad | G22: Prognoos | H22: Tegelik
B23: Kutsete kujundamine | C23: 45.00 € | D23: 45.00 € | F23: Lindid/plakatid
B24: Pildistamisteenus / fotode ilmutamine | F24: Kingitused
B25: Postikulu | F25: Kokku | G25: =SUBTOTAL(109,Auhinnakulud[Prognoos]) -> 0.00 € | H25: =SUBTOTAL(109,Auhinnakulud[Tegelik]) -> 0.00 €
B26: Kokku | C26: =SUBTOTAL(109,Reklaamikulud[Prognoos]) -> 45.00 € | D26: =SUBTOTAL(109,Reklaamikulud[Tegelik]) -> 45.00 €
A28: Sisestage muud kulud parempoolsest lahtrist algavasse tabelisse. | B28: Muud kulud | C28: Prognoos | D28: Tegelik
B29: Telefon
B30: Transport
B31: Kirjatarbed
B32: Faksiteenused
B33: Kokku | C33: =SUBTOTAL(109,MuudKulud[Prognoos]) -> 0.00 € | D33: =SUBTOTAL(109,MuudKulud[Tegelik]) -> 0.00 €

Sheet Sissetulekud
A1: Sisestage selle töölehe vastavatesse tabelitesse eri kategooriate lõikes prognoos ja tegelik tulu. Kogutulu arvutatakse automaatselt. Töölehe kasutamise kohta käivad kasulikud juhised leiate selle veeru lahtritest. Liikuge alustamiseks noolega alla.
A2: Parempoolses lahtris värskendatakse sündmuse nimi automaatselt. | B2: =Väljaminekud!B2 -> Ürituse eelarve Ürituse nimi
A3: Lahtris F3 on sissetulekud silt. | F3: Sissetulekud
A4: Lahtris F4 on prognoos tulu silt, tegelik tulu silt on lahtris G4. | F4: Prognoos | G4: Tegelik
A5: Parempoolses lahtris on Sissetulekud kokku. Prognoositud kokku arvutatakse automaatselt lahtris F5. Tegelik kokku ja andmeriba, millel on kujutatud Tegelik kokku, uuendatakse automaatselt lahtris G5. | B5: Sissetulekud kokku | F5: =SUM(Piletid[[#Totals],[Prognoositud kokku]],ReklaamidVoldikus[[#Totals],[Prognoositud kokku]],EksponendidJaTarnijad[[#Totals],[Prognoositud kokku]],KaubaMüük[[#Totals],[Prognoositud kokku]]) -> 1,936.00 € | G5: =SUM(Piletid[[#Totals],[Tegelik kokku]],ReklaamidVoldikus[[#Totals],[Tegelik kokku]],EksponendidJaTarnijad[[#Totals],[Tegelik kokku]],KaubaMüük[[#Totals],[Tegelik kokku]]) -> 1,831.00 €
A6: Paremal asuvas lahtris kuvatakse osavõtu silt. | B6: Piletid
A7: Sisestage tabelisse prognoos ja tegelik külastajate arv koos piletid, alustades parempoosest lahtrist. Osavõtult saadud prognoos ja tegelik tulu arvutatakse automaatselt. Järgmine juhis on lahtris A12. | B7: Prognoos | C7: Tegelik | D7: Tüüp | E7: Hind | F7: Prognoositud kokku | G7: Tegelik kokku
B8: 300 | C8: 278 | D8: Täiskasvanud @ | E8: 5.00 € | F8: =B8*E8 -> 1,500.00 € | G8: =C8*E8 -> 1,390.00 €
B9: 197 | C9: 195 | D9: Lapsed @ | E9: 2.00 € | F9: =B9*E9 -> 394.00 € | G9: =C9*E9 -> 390.00 €
B10: 42 | C10: 51 | D10: Muu @ | E10: 1.00 € | F10: 42.00 € | G10: 51.00 €
F11: =SUBTOTAL(109,Piletid[Prognoositud kokku]) -> 1,936.00 € | G11: =SUBTOTAL(109,Piletid[Tegelik kokku]) -> 1,831.00 €
A12: Paremal asuvas lahtris kuvatakse programmi reklaamid silt. | B12: Programmi reklaamid
A13: Sisestage tabelisse prognoos ja tegelik reklaamide arv koos hindadega, alustades parempoosest lahtrist. Prognoos ja tegelik programmi reklaamid arvutatakse automaatselt. Järgmine juhis on lahtris A18. | B13: Prognoos | C13: Tegelik | D13: Tüüp | E13: Hind | F13: Prognoositud kokku | G13: Tegelik kokku
D14: Plank @ | F14: =B14*E14 -> 0.00 € | G14: =C14*E14 -> 0.00 €
D15: Pool lehekülge @ | F15: =B15*E15 -> 0.00 € | G15: =C15*E15 -> 0.00 €
D16: Veerand lehekülge @ | F16: 0.00 € | G16: 0.00 €
F17: =SUBTOTAL(109,ReklaamidVoldikus[Prognoositud kokku]) -> 0.00 € | G17: =SUBTOTAL(109,ReklaamidVoldikus[Tegelik kokku]) -> 0.00 €
A18: Paremal asuvas lahtris kuvatakse silt Eksponendid või müüjad. | B18: EKSPONENDID/MÜÜJAD
A19: Sisestage tabelisse prognoos ja tegelik eksponentide arv koos näituseboksi hindadega, alustades parempoosest lahtrist. Prognoos ja tegelik tulu arvutatakse automaatselt. Järgmine juhis on lahtris A24. | B19: Prognoos | C19: Tegelik | D19: Tüüp | E19: Hind | F19: Prognoositud kokku | G19: Tegelik kokku
D20: Suured näituseboksid @ | F20: =B20*E20 -> 0.00 € | G20: =C20*E20 -> 0.00 €
D21: Keskmised näituseboksid @ | F21: =B21*E21 -> 0.00 € | G21: =C21*E21 -> 0.00 €
D22: Väikesed näituseboksid @ | F22: 0.00 € | G22: 0.00 €
F23: =SUBTOTAL(109,EksponendidJaTarnijad[Prognoositud kokku]) -> 0.00 € | G23: =SUBTOTAL(109,EksponendidJaTarnijad[Tegelik kokku]) -> 0.00 €
A24: Paremal asuvas lahtris kuvatakse silt Kaupade müük. | B24: Kaupade müük
A25: Sisestage tabelisse prognoos ja tegelik müüdud kaupade arv koos hindadega, alustades parempoosest lahtrist. Prognoos ja tegelik tulu arvutatakse automaatselt. | B25: Prognoos | C25: Tegelik | D25: Tüüp | E25: Hind | F25: Prognoositud kokku | G25: Tegelik kokku
D26: Tooted @ | F26: =B26*E26 -> 0.00 € | G26: =C26*E26 -> 0.00 €
D27: Tooted @ | F27: =B27*E27 -> 0.00 € | G27: =C27*E27 -> 0.00 €
D28: Tooted @ | F28: 0.00 € | G28: 0.00 €
D29: Tooted @ | F29: 0.00 € | G29: 0.00 €
F30: =SUBTOTAL(109,KaubaMüük[Prognoositud kokku]) -> 0.00 € | G30: =SUBTOTAL(109,KaubaMüük[Tegelik kokku]) -> 0.00 €

Sheet Kokkuvõte
A1: Kasumi ja kahjumi kokkuvõte ning Kogutulu ja kogukulude diagrammi uuendatakse automaatselt sellel töölehel. Töölehe kasutamise kohta käivad kasulikud juhised leiate selle veeru lahtritest. Liikuge alustamiseks noolega alla.
A2: Parempoolses lahtris värskendatakse Ürituse nimi automaatselt. | B2: =Väljaminekud!B2 -> Ürituse eelarve Ürituse nimi
A3: Kasumi-kahjumi kokkuvõte silt on lahtris C3. Järgmised juhised on toodud lahtris A5. | C3: Kasumi-kahjumi kokkuvõte
A5: Parempoolsest lahtrist algavat koguväärtustega tabelit värskendatakse automaatselt. Järgmised juhised on toodud lahtris A9. | B5: Kokku | C5: Prognoos | D5: Tegelik
B6: Kogutulu | C6: =Sissetulekud!F5 -> 1,936.00 € | D6: =Sissetulekud!G5 -> 1,831.00 €
B7: Kogukulud | C7: =Väljaminekud!G5 -> 1,145.00 € | D7: =Väljaminekud!H5 -> 395.00 €
B8: Kogukasum (või -kahjum) | C8: =C6-C7 -> 791.00 € | D8: =D6-D7 -> 1,436.00 €
A9: Kobartulpdiagramm, kus on kujutatud prognoos ja tegelik Kogutulu ja Kogukulud kogusummade võrdlus, asub parempoolses lahtris. | B9: Kobartulpdiagramm, kus on kujutatud prognoos ja tegelik Kogutulu ja Kogukulud kogusummade võrdlus, asub selles lahtris.
